[Event "*** Titled Tuesday Blitz"]
[Site "Chess.com"]
[Date "2021.04.27"]
[Round "1"]
[White "dretch"]
[Black "fyall777"]
[Result "1-0"]
[WhiteElo "2801"]
[BlackElo "2422"]
[TimeControl "180+1"]
[EndTime "10:07:37 PDT"]
[Termination "dretch won on time"]

1. d4 {[%clk 0:03:00.9]} 1... e6 {[%clk 0:03:00]} 2. c4 {[%clk 0:03:00.1]} 2...
Nf6 {[%clk 0:02:58.6]} 3. Nc3 {[%clk 0:02:59]} 3... Bb4 {[%clk 0:02:58.2]} 4.
Qc2 {[%clk 0:02:59.4]} 4... c5 {[%clk 0:02:57.2]} 5. dxc5 {[%clk 0:02:56.8]}
5... Qa5 {[%clk 0:02:57]} 6. Bd2 {[%clk 0:02:55.8]} 6... Na6 {[%clk 0:02:56.5]}
7. a3 {[%clk 0:02:55.2]} 7... Nxc5 {[%clk 0:02:56.5]} 8. Rc1 {[%clk 0:02:55.4]}
8... Bxc3 {[%clk 0:02:56.6]} 9. Bxc3 {[%clk 0:02:56.3]} 9... Qa4 {[%clk
0:02:56.1]} 10. b4 {[%clk 0:02:56.4]} 10... Qxc2 {[%clk 0:02:54.6]} 11. Rxc2
{[%clk 0:02:57.3]} 11... Na4 {[%clk 0:02:49]} 12. Bxf6 {[%clk 0:02:51.3]} 12...
gxf6 {[%clk 0:02:48.5]} 13. e3 {[%clk 0:02:51.8]} 13... b6 {[%clk 0:02:45.1]}
14. Be2 {[%clk 0:02:48.8]} 14... Bb7 {[%clk 0:02:44.5]} 15. Bf3 {[%clk
0:02:49.1]} 15... Bxf3 {[%clk 0:02:41]} 16. Nxf3 {[%clk 0:02:50]} 16... Ke7
{[%clk 0:02:33.4]} 17. Ke2 {[%clk 0:02:45.8]} 17... Rhc8 {[%clk 0:02:32.4]} 18.
Rhc1 {[%clk 0:02:45.5]} 18... d6 {[%clk 0:02:23.4]} 19. e4 {[%clk 0:02:37.7]}
19... Rc7 {[%clk 0:02:19.5]} 20. Nd4 {[%clk 0:02:36.2]} 20... a6 {[%clk
0:02:18.9]} 21. Kf3 {[%clk 0:02:31.8]} 21... Rac8 {[%clk 0:02:18.3]} 22. Kg4
{[%clk 0:02:30.9]} 22... b5 {[%clk 0:02:13.9]} 23. cxb5 {[%clk 0:02:28.9]} 23...
Rxc2 {[%clk 0:02:12.7]} 24. Rxc2 {[%clk 0:02:28]} 24... Rxc2 {[%clk 0:02:12.8]}
25. Nxc2 {[%clk 0:02:28.9]} 25... axb5 {[%clk 0:02:12.6]} 26. Kh5 {[%clk
0:02:23.6]} 26... Nc3 {[%clk 0:02:08.6]} 27. f3 {[%clk 0:02:19.1]} 27... Kf8
{[%clk 0:01:53.1]} 28. Kh6 {[%clk 0:02:17.5]} 28... Kg8 {[%clk 0:01:52]} 29. Ne3
{[%clk 0:02:12.2]} 29... Nb1 {[%clk 0:01:47.7]} 30. Ng4 {[%clk 0:02:11.6]} 30...
Nxa3 {[%clk 0:01:36.5]} 31. Nxf6+ {[%clk 0:02:11.3]} 31... Kh8 {[%clk
0:01:33.6]} 32. Ne8 {[%clk 0:02:01]} 32... d5 {[%clk 0:01:31.7]} 33. exd5 {[%clk
0:01:58.6]} 33... exd5 {[%clk 0:01:31.6]} 34. Nd6 {[%clk 0:01:57.8]} 34... Kg8
{[%clk 0:01:22.4]} 35. Kg5 {[%clk 0:01:55.1]} 35... Nc2 {[%clk 0:01:06.5]} 36.
Kf4 {[%clk 0:01:48.3]} 36... Nxb4 {[%clk 0:01:04.5]} 37. Nxb5 {[%clk 0:01:44.5]}
37... Nc6 {[%clk 0:01:00.8]} 38. Nc7 {[%clk 0:01:38.6]} 38... d4 {[%clk
0:00:52.7]} 39. Ke4 {[%clk 0:01:37]} 39... Kg7 {[%clk 0:00:52.7]} 40. Nb5 {[%clk
0:01:34.4]} 40... Kg6 {[%clk 0:00:46.8]} 41. Nxd4 {[%clk 0:01:32.4]} 41... Ne7
{[%clk 0:00:44.9]} 42. Ke5 {[%clk 0:01:32]} 42... h5 {[%clk 0:00:41]} 43. h4
{[%clk 0:01:26.9]} 43... Ng8 {[%clk 0:00:32.8]} 44. Ne2 {[%clk 0:01:23.8]} 44...
Kh6 {[%clk 0:00:17.8]} 45. Nf4 {[%clk 0:01:18.6]} 45... Ne7 {[%clk 0:00:12.9]}
46. Kf6 {[%clk 0:01:16]} 46... Nc6 {[%clk 0:00:11.1]} 47. Kxf7 {[%clk
0:01:15.3]} 47... Ne5+ {[%clk 0:00:11.2]} 48. Kf6 {[%clk 0:01:14.6]} 48... Nc4
{[%clk 0:00:11.2]} 49. g4 {[%clk 0:01:10.8]} 49... hxg4 {[%clk 0:00:11.2]} 50.
fxg4 {[%clk 0:01:10.8]} 50... Ne3 {[%clk 0:00:10.9]} 51. g5+ {[%clk 0:01:10.8]}
51... Kh7 {[%clk 0:00:11.4]} 52. Kf7 {[%clk 0:01:10.8]} 52... Nf5 {[%clk
0:00:06.4]} 53. g6+ {[%clk 0:01:09.7]} 53... Kh6 {[%clk 0:00:06.1]} 54. h5
{[%clk 0:01:09.4]} 54... Ng7 {[%clk 0:00:06.5]} 55. Kf6 {[%clk 0:01:00.6]} 55...
Ne8+ {[%clk 0:00:06.4]} 56. Ke7 {[%clk 0:00:53.4]} 56... Ng7 {[%clk 0:00:06.6]}
57. Kf7 {[%clk 0:00:52.4]} 57... Nf5 {[%clk 0:00:05.9]} 58. Ne2 {[%clk
0:00:43.7]} 58... Nd6+ {[%clk 0:00:02.3]} 59. Ke6 {[%clk 0:00:42.2]} 1-0

[Event "*** Titled Tuesday Blitz"]
[Site "Chess.com"]
[Date "2021.04.27"]
[Round "1"]
[White "northridgehawk"]
[Black "Sammed_Shete"]
[Result "1/2-1/2"]
[WhiteElo "2319"]
[BlackElo "2638"]
[TimeControl "180+1"]
[EndTime "10:07:37 PDT"]
[Termination "Game drawn - insufficient material"]

1. e4 {[%clk 0:02:59.9]} 1... c5 {[%clk 0:02:59.4]} 2. Nf3 {[%clk 0:02:58.6]}
2... d6 {[%clk 0:02:59.7]} 3. d4 {[%clk 0:02:58.5]} 3... cxd4 {[%clk 0:03:00.6]}
4. Nxd4 {[%clk 0:02:58.8]} 4... Nf6 {[%clk 0:03:01.1]} 5. Nc3 {[%clk 0:02:58.9]}
5... a6 {[%clk 0:03:01.6]} 6. h3 {[%clk 0:02:58.6]} 6... e5 {[%clk 0:03:01.1]}
7. Nde2 {[%clk 0:02:57.9]} 7... h5 {[%clk 0:02:57.8]} 8. g3 {[%clk 0:02:58.1]}
8... Be6 {[%clk 0:02:57.9]} 9. Bg2 {[%clk 0:02:58.3]} 9... Nbd7 {[%clk
0:02:56.2]} 10. O-O {[%clk 0:02:57.6]} 10... b5 {[%clk 0:02:50]} 11. Be3 {[%clk
0:02:55.6]} 11... Nb6 {[%clk 0:02:43.4]} 12. b3 {[%clk 0:02:51.7]} 12... Be7
{[%clk 0:02:40.3]} 13. a4 {[%clk 0:02:49.3]} 13... b4 {[%clk 0:02:37.3]} 14. Nd5
{[%clk 0:02:48.6]} 14... Nbxd5 {[%clk 0:02:35.7]} 15. exd5 {[%clk 0:02:49.5]}
15... Bf5 {[%clk 0:02:36.3]} 16. Qd2 {[%clk 0:02:44.8]} 16... a5 {[%clk
0:02:33.7]} 17. f4 {[%clk 0:02:41.5]} 17... exf4 {[%clk 0:02:20.5]} 18. Nxf4
{[%clk 0:02:37.9]} 18... Bh7 {[%clk 0:01:59.3]} 19. Bd4 {[%clk 0:02:28.9]} 19...
O-O {[%clk 0:01:55.3]} 20. Rae1 {[%clk 0:02:26.6]} 20... Rc8 {[%clk 0:01:54.1]}
21. Nd3 {[%clk 0:02:19.1]} 21... Re8 {[%clk 0:01:45.4]} 22. Re2 {[%clk 0:02:10]}
22... Bf8 {[%clk 0:00:52.3]} 23. Bxf6 {[%clk 0:01:42.2]} 23... Rxe2 {[%clk
0:00:46.4]} 24. Qxe2 {[%clk 0:01:39.4]} 24... gxf6 {[%clk 0:00:45]} 25. Qxh5
{[%clk 0:01:36.4]} 25... Rxc2 {[%clk 0:00:42.5]} 26. Qg4+ {[%clk 0:01:28.6]}
26... Kh8 {[%clk 0:00:31.9]} 27. Nf4 {[%clk 0:01:26.6]} 27... Qc8 {[%clk
0:00:20.1]} 28. Qh4 {[%clk 0:01:21]} 28... Be7 {[%clk 0:00:18]} 29. Nh5 {[%clk
0:01:11.4]} 29... Qc5+ {[%clk 0:00:16.2]} 30. Kh1 {[%clk 0:01:09.9]} 30... Rf2
{[%clk 0:00:15.9]} 31. Re1 {[%clk 0:01:01]} 31... Rxg2 {[%clk 0:00:15.3]} 32.
Nxf6 {[%clk 0:00:26.6]} 32... Qc2 {[%clk 0:00:09.8]} 33. Qxh7+ {[%clk
0:00:21.4]} 33... Qxh7 {[%clk 0:00:08.3]} 34. Nxh7 {[%clk 0:00:20.7]} 34... Rb2
{[%clk 0:00:08.5]} 35. Rxe7 {[%clk 0:00:19.4]} 35... Kxh7 {[%clk 0:00:07.5]} 36.
Rxf7+ {[%clk 0:00:19.8]} 36... Kg6 {[%clk 0:00:08]} 37. Rd7 {[%clk 0:00:20.5]}
37... Rxb3 {[%clk 0:00:08.4]} 38. Rxd6+ {[%clk 0:00:21.4]} 38... Kf5 {[%clk
0:00:08.9]} 39. Ra6 {[%clk 0:00:21.2]} 39... Rxg3 {[%clk 0:00:05.4]} 40. Rxa5
{[%clk 0:00:22.1]} 40... Rxh3+ {[%clk 0:00:04.5]} 41. Kg2 {[%clk 0:00:22]} 41...
Rd3 {[%clk 0:00:05.4]} 42. Rb5 {[%clk 0:00:22.3]} 42... b3 {[%clk 0:00:05.8]}
43. a5 {[%clk 0:00:22.1]} 43... Ke5 {[%clk 0:00:04.5]} 44. a6 {[%clk 0:00:22.3]}
44... Rxd5 {[%clk 0:00:04.8]} 45. Rxb3 {[%clk 0:00:20.9]} 45... Ra5 {[%clk
0:00:04.6]} 46. Rb6 {[%clk 0:00:21.1]} 46... Kd5 {[%clk 0:00:05]} 47. Rh6 {[%clk
0:00:21.5]} 47... Kc4 {[%clk 0:00:04.2]} 48. Kf3 {[%clk 0:00:21.3]} 48... Kb5
{[%clk 0:00:04.6]} 49. Ke4 {[%clk 0:00:21.7]} 49... Rxa6 {[%clk 0:00:04.8]} 50.
Rxa6 {[%clk 0:00:22]} 50... Kxa6 {[%clk 0:00:05.4]} 1/2-1/2

[Event "*** Titled Tuesday Blitz"]
[Site "Chess.com"]
[Date "2021.04.27"]
[Round "1"]
[White "Dinamo81"]
[Black "SargissyanSargis"]
[Result "1-0"]
[WhiteElo "2711"]
[BlackElo "2373"]
[TimeControl "180+1"]
[EndTime "10:07:39 PDT"]
[Termination "Dinamo81 won on time"]

1. d4 {[%clk 0:02:58.2]} 1... Nf6 {[%clk 0:02:59.6]} 2. Bf4 {[%clk 0:02:57.6]}
2... g6 {[%clk 0:02:58.7]} 3. Nc3 {[%clk 0:02:57.1]} 3... d5 {[%clk 0:02:57]} 4.
e3 {[%clk 0:02:56.7]} 4... Bg7 {[%clk 0:02:56.2]} 5. h4 {[%clk 0:02:57.2]} 5...
h5 {[%clk 0:02:38.2]} 6. Nf3 {[%clk 0:02:56.4]} 6... Bf5 {[%clk 0:02:25.6]} 7.
Be2 {[%clk 0:02:52.4]} 7... Ne4 {[%clk 0:02:23.3]} 8. Nxe4 {[%clk 0:02:49.7]}
8... dxe4 {[%clk 0:02:14]} 9. Ng5 {[%clk 0:02:34.3]} 9... c5 {[%clk 0:01:52.2]}
10. c3 {[%clk 0:02:05]} 10... cxd4 {[%clk 0:01:45.8]} 11. exd4 {[%clk
0:02:00.9]} 11... Nd7 {[%clk 0:01:37.7]} 12. Qb3 {[%clk 0:01:57.1]} 12... O-O
{[%clk 0:01:25.9]} 13. Rd1 {[%clk 0:01:41.3]} 13... Qb6 {[%clk 0:01:12.4]} 14.
Bc4 {[%clk 0:01:39.8]} 14... e6 {[%clk 0:00:49.8]} 15. Be3 {[%clk 0:01:35.1]}
15... Qxb3 {[%clk 0:00:47]} 16. Bxb3 {[%clk 0:01:34.8]} 16... Nb6 {[%clk
0:00:47.4]} 17. Bc2 {[%clk 0:01:29.2]} 17... Nc4 {[%clk 0:00:46]} 18. Rb1 {[%clk
0:01:25]} 18... Bh6 {[%clk 0:00:27.6]} 19. Bb3 {[%clk 0:01:03.4]} 19... Nxe3
{[%clk 0:00:26.5]} 20. fxe3 {[%clk 0:01:04.3]} 20... Bxg5 {[%clk 0:00:27.4]} 21.
hxg5 {[%clk 0:01:03.5]} 21... Kg7 {[%clk 0:00:27.6]} 22. Kd2 {[%clk 0:01:01.7]}
22... b6 {[%clk 0:00:27.1]} 23. Bc2 {[%clk 0:00:59.7]} 23... Rac8 {[%clk
0:00:26.1]} 24. Rbf1 {[%clk 0:00:58.8]} 24... Rfd8 {[%clk 0:00:25.6]} 25. Rh4
{[%clk 0:00:54.3]} 25... Rd5 {[%clk 0:00:24.3]} 26. b3 {[%clk 0:00:38]} 26...
Bg4 {[%clk 0:00:22.6]} 27. Bxe4 {[%clk 0:00:35.6]} 27... Rxg5 {[%clk 0:00:21.7]}
28. Rf2 {[%clk 0:00:34.5]} 28... e5 {[%clk 0:00:19.4]} 29. Bb7 {[%clk
0:00:32.6]} 29... Rd8 {[%clk 0:00:19.3]} 30. d5 {[%clk 0:00:31.4]} 30... Be6
{[%clk 0:00:16]} 31. c4 {[%clk 0:00:30.9]} 31... Rg4 {[%clk 0:00:14.3]} 32. Rxg4
{[%clk 0:00:30.2]} 32... Bxg4 {[%clk 0:00:15.2]} 33. b4 {[%clk 0:00:28.7]} 33...
Bc8 {[%clk 0:00:13.3]} 34. Bc6 {[%clk 0:00:26]} 34... Bd7 {[%clk 0:00:13.6]} 35.
Bxd7 {[%clk 0:00:26.1]} 35... Rxd7 {[%clk 0:00:14.5]} 36. e4 {[%clk 0:00:26.7]}
36... Rc7 {[%clk 0:00:11.9]} 37. Kd3 {[%clk 0:00:26.9]} 37... Kf8 {[%clk
0:00:09.1]} 38. Rc2 {[%clk 0:00:27.2]} 38... Ke7 {[%clk 0:00:09]} 39. c5 {[%clk
0:00:27.6]} 39... bxc5 {[%clk 0:00:08.7]} 40. bxc5 {[%clk 0:00:28.1]} 40... Kd7
{[%clk 0:00:08.7]} 41. c6+ {[%clk 0:00:25.9]} 41... Kd6 {[%clk 0:00:09.1]} 42.
Rb2 {[%clk 0:00:26.3]} 42... f5 {[%clk 0:00:08.9]} 43. Rb8 {[%clk 0:00:25.8]}
43... fxe4+ {[%clk 0:00:02.4]} 44. Kxe4 {[%clk 0:00:26.7]} 44... g5 {[%clk
0:00:02.3]} 45. Rd8+ {[%clk 0:00:25.7]} 45... Kc5 {[%clk 0:00:02.9]} 46. Rd7
{[%clk 0:00:22]} 46... Rc8 {[%clk 0:00:02.4]} 47. Kxe5 {[%clk 0:00:21.1]} 1-0

[Event "*** Titled Tuesday Blitz"]
[Site "Chess.com"]
[Date "2021.04.27"]
[Round "1"]
[White "TigrVShlyape"]
[Black "The_Machine04"]
[Result "1-0"]
[WhiteElo "2836"]
[BlackElo "2432"]
[TimeControl "180+1"]
[EndTime "10:07:41 PDT"]
[Termination "TigrVShlyape won by resignation"]

1. e4 {[%clk 0:03:00.9]} 1... d6 {[%clk 0:02:58.9]} 2. d4 {[%clk 0:02:58.3]}
2... Nf6 {[%clk 0:02:59.8]} 3. Nc3 {[%clk 0:02:58.3]} 3... e5 {[%clk 0:02:55.5]}
4. Nf3 {[%clk 0:02:57.5]} 4... Nbd7 {[%clk 0:02:55.1]} 5. Bc4 {[%clk 0:02:56.7]}
5... Be7 {[%clk 0:02:55.1]} 6. O-O {[%clk 0:02:56.6]} 6... c6 {[%clk 0:02:55.3]}
7. a4 {[%clk 0:02:56.8]} 7... h6 {[%clk 0:02:54.9]} 8. a5 {[%clk 0:02:55.1]}
8... Qc7 {[%clk 0:02:55.3]} 9. Re1 {[%clk 0:02:51.7]} 9... Nf8 {[%clk
0:02:55.3]} 10. Nh4 {[%clk 0:02:45.2]} 10... g6 {[%clk 0:02:55.1]} 11. Nf3
{[%clk 0:02:36]} 11... g5 {[%clk 0:02:53.7]} 12. d5 {[%clk 0:02:20.1]} 12... Ng6
{[%clk 0:02:48.4]} 13. a6 {[%clk 0:02:19.4]} 13... b5 {[%clk 0:02:46.8]} 14. Bb3
{[%clk 0:02:14.5]} 14... Bd7 {[%clk 0:02:45.3]} 15. dxc6 {[%clk 0:02:13.9]}
15... Bxc6 {[%clk 0:02:46.2]} 16. Nd5 {[%clk 0:02:08]} 16... Nxd5 {[%clk
0:02:36.5]} 17. Bxd5 {[%clk 0:02:07.3]} 17... O-O {[%clk 0:02:27.9]} 18. c3
{[%clk 0:02:06]} 18... Rab8 {[%clk 0:02:07.3]} 19. Be3 {[%clk 0:02:03.4]} 19...
Kg7 {[%clk 0:01:32.5]} 20. Qd3 {[%clk 0:01:49.5]} 20... g4 {[%clk 0:01:00.6]}
21. Nd2 {[%clk 0:01:48.5]} 21... Bg5 {[%clk 0:01:00]} 22. g3 {[%clk 0:01:38]}
22... Bxe3 {[%clk 0:00:54.8]} 23. Rxe3 {[%clk 0:01:36.8]} 23... Bd7 {[%clk
0:00:37.4]} 24. Ree1 {[%clk 0:01:32.8]} 24... f5 {[%clk 0:00:36.1]} 25. exf5
{[%clk 0:01:32]} 25... Bxf5 {[%clk 0:00:35.2]} 26. Be4 {[%clk 0:01:31.9]} 26...
Qd7 {[%clk 0:00:22.6]} 27. Rad1 {[%clk 0:01:08.7]} 27... Rbd8 {[%clk 0:00:21.2]}
28. Bxf5 {[%clk 0:01:02.8]} 28... Qxf5 {[%clk 0:00:22.1]} 29. Qxf5 {[%clk
0:01:01.2]} 29... Rxf5 {[%clk 0:00:22.3]} 30. Ne4 {[%clk 0:01:01.5]} 30... d5
{[%clk 0:00:19.5]} 31. Nc5 {[%clk 0:00:59.7]} 31... Rf6 {[%clk 0:00:17.9]} 32.
Rd3 {[%clk 0:00:54.9]} 32... Rc6 {[%clk 0:00:15.9]} 33. b4 {[%clk 0:00:54.3]}
33... Kf6 {[%clk 0:00:15.3]} 34. Kg2 {[%clk 0:00:51.8]} 34... h5 {[%clk
0:00:12.9]} 35. h3 {[%clk 0:00:50.9]} 35... Kf5 {[%clk 0:00:10.4]} 36. hxg4+
{[%clk 0:00:50]} 36... hxg4 {[%clk 0:00:11.3]} 37. f3 {[%clk 0:00:44]} 37...
gxf3+ {[%clk 0:00:09.5]} 38. Rxf3+ {[%clk 0:00:43.5]} 38... Kg4 {[%clk
0:00:09.2]} 39. Rf7 {[%clk 0:00:41.5]} 39... d4 {[%clk 0:00:08.6]} 40. Rd1
{[%clk 0:00:35]} 40... Rcd6 {[%clk 0:00:05.8]} 41. Ne4 {[%clk 0:00:35]} 41...
Rc6 {[%clk 0:00:04.6]} 42. Nf2+ {[%clk 0:00:35]} 42... Kg5 {[%clk 0:00:04.5]}
43. Ne4+ {[%clk 0:00:35.1]} 43... Kg4 {[%clk 0:00:04.9]} 44. Rxa7 {[%clk
0:00:34.9]} 44... dxc3 {[%clk 0:00:04.8]} 45. Nf2+ {[%clk 0:00:28.1]} 45... Kg5
{[%clk 0:00:04.8]} 46. Rxd8 {[%clk 0:00:27.9]} 46... c2 {[%clk 0:00:05]} 47. Nd3
{[%clk 0:00:28.4]} 47... c1=Q {[%clk 0:00:05.7]} 48. Nxc1 {[%clk 0:00:28.4]}
48... Rxc1 {[%clk 0:00:06.6]} 49. Rg7 {[%clk 0:00:26.6]} 49... Rc2+ {[%clk
0:00:06.2]} 50. Kf3 {[%clk 0:00:26.4]} 50... Kf6 {[%clk 0:00:06.6]} 51. Rxg6+
{[%clk 0:00:25.6]} 51... Kxg6 {[%clk 0:00:06.7]} 52. a7 {[%clk 0:00:26.1]} 52...
Kf5 {[%clk 0:00:06.8]} 53. a8=Q {[%clk 0:00:25.3]} 53... Rc3+ {[%clk 0:00:07.7]}
1-0

[Event "*** Titled Tuesday Blitz"]
[Site "Chess.com"]
[Date "2021.04.27"]
[Round "1"]
[White "ErikBlomqvist"]
[Black "Agoking701"]
[Result "1-0"]
[WhiteElo "2590"]
[BlackElo "2256"]
[TimeControl "180+1"]
[EndTime "10:07:41 PDT"]
[Termination "ErikBlomqvist won on time"]

1. e4 {[%clk 0:03:00.5]} 1... c6 {[%clk 0:02:56.8]} 2. d4 {[%clk 0:02:57.5]}
2... d5 {[%clk 0:02:57.7]} 3. exd5 {[%clk 0:02:56.4]} 3... cxd5 {[%clk
0:02:57.1]} 4. Bd3 {[%clk 0:02:56.7]} 4... Nc6 {[%clk 0:02:53.7]} 5. c3 {[%clk
0:02:57.1]} 5... g6 {[%clk 0:02:52.8]} 6. Nf3 {[%clk 0:02:55.7]} 6... Bf5 {[%clk
0:02:51.4]} 7. Be2 {[%clk 0:02:40.3]} 7... Nf6 {[%clk 0:02:45]} 8. O-O {[%clk
0:02:39.5]} 8... e6 {[%clk 0:02:43.8]} 9. Nbd2 {[%clk 0:02:34.4]} 9... Bd6
{[%clk 0:02:34.8]} 10. h3 {[%clk 0:02:30.7]} 10... O-O {[%clk 0:02:32.1]} 11.
Nb3 {[%clk 0:02:28.3]} 11... Qc7 {[%clk 0:02:24.3]} 12. Bh6 {[%clk 0:02:19.2]}
12... Rfe8 {[%clk 0:02:22.6]} 13. Re1 {[%clk 0:02:19.2]} 13... Bf4 {[%clk
0:02:14.5]} 14. Bxf4 {[%clk 0:02:15.3]} 14... Qxf4 {[%clk 0:02:15.4]} 15. Nc5
{[%clk 0:01:59.9]} 15... b6 {[%clk 0:02:08]} 16. Nd3 {[%clk 0:01:58.6]} 16...
Bxd3 {[%clk 0:02:07]} 17. Bxd3 {[%clk 0:01:59.5]} 17... Rac8 {[%clk 0:01:43.9]}
18. Qe2 {[%clk 0:01:49.3]} 18... Kg7 {[%clk 0:01:39.2]} 19. g3 {[%clk
0:01:43.8]} 19... Qd6 {[%clk 0:01:38.1]} 20. Rad1 {[%clk 0:01:29.3]} 20... Re7
{[%clk 0:01:29.9]} 21. Kg2 {[%clk 0:01:16.8]} 21... Rce8 {[%clk 0:01:00.6]} 22.
Ne5 {[%clk 0:01:15.3]} 22... Nd7 {[%clk 0:00:57.1]} 23. Bb5 {[%clk 0:00:49.4]}
23... Ndxe5 {[%clk 0:00:48]} 24. dxe5 {[%clk 0:00:50.3]} 24... Qc7 {[%clk
0:00:44]} 25. Qe3 {[%clk 0:00:26.2]} 25... Rc8 {[%clk 0:00:40.1]} 26. h4 {[%clk
0:00:25]} 26... h5 {[%clk 0:00:30.6]} 27. Qg5 {[%clk 0:00:24.5]} 27... Rd7
{[%clk 0:00:27]} 28. Re3 {[%clk 0:00:23.2]} 28... d4 {[%clk 0:00:24.2]} 29. cxd4
{[%clk 0:00:16.3]} 29... Rxd4 {[%clk 0:00:25.1]} 30. Rc1 {[%clk 0:00:16.5]}
30... Qb7 {[%clk 0:00:20.2]} 31. Rf3 {[%clk 0:00:13.1]} 31... Kg8 {[%clk
0:00:11.9]} 32. Qf6 {[%clk 0:00:09.6]} 32... Nd8 {[%clk 0:00:11.7]} 33. Rxc8
{[%clk 0:00:07.3]} 33... Qxc8 {[%clk 0:00:12.6]} 34. Bd3 {[%clk 0:00:05.3]}
34... Qd7 {[%clk 0:00:07.4]} 35. Bxg6 {[%clk 0:00:05]} 35... fxg6 {[%clk
0:00:08.3]} 36. Qxg6+ {[%clk 0:00:05.6]} 36... Qg7 {[%clk 0:00:06.3]} 37. Qe8+
{[%clk 0:00:05.6]} 37... Kh7 {[%clk 0:00:05.3]} 38. Qxh5+ {[%clk 0:00:05.5]}
38... Kg8 {[%clk 0:00:05.5]} 39. Rf6 {[%clk 0:00:03.8]} 39... Rg4 {[%clk
0:00:03.4]} 40. Qe8+ {[%clk 0:00:03]} 40... Kh7 {[%clk 0:00:03.8]} 41. Qxd8
{[%clk 0:00:03.2]} 41... Re4 {[%clk 0:00:02]} 42. Qd3 {[%clk 0:00:03]} 1-0

[Event "*** Titled Tuesday Blitz"]
[Site "Chess.com"]
[Date "2021.04.27"]
[Round "1"]
[White "chessdiamant"]
[Black "vovachesss"]
[Result "0-1"]
[WhiteElo "2301"]
[BlackElo "2633"]
[TimeControl "180+1"]
[EndTime "10:07:42 PDT"]
[Termination "vovachesss won on time"]

1. e4 {[%clk 0:03:00.1]} 1... c6 {[%clk 0:02:53.7]} 2. d4 {[%clk 0:02:59]} 2...
d5 {[%clk 0:02:53.8]} 3. exd5 {[%clk 0:02:58.8]} 3... cxd5 {[%clk 0:02:54.1]} 4.
Bf4 {[%clk 0:02:58.2]} 4... Nf6 {[%clk 0:02:54.1]} 5. c3 {[%clk 0:02:57.1]} 5...
Nc6 {[%clk 0:02:54.3]} 6. Nd2 {[%clk 0:02:57.4]} 6... Bg4 {[%clk 0:02:53.7]} 7.
Ngf3 {[%clk 0:02:56.4]} 7... e6 {[%clk 0:02:53.2]} 8. Qb3 {[%clk 0:02:55.1]}
8... Qc8 {[%clk 0:02:51.7]} 9. h3 {[%clk 0:02:54.6]} 9... Bh5 {[%clk 0:02:51.4]}
10. g4 {[%clk 0:02:53]} 10... Bg6 {[%clk 0:02:51]} 11. Nh4 {[%clk 0:02:53.3]}
11... Be7 {[%clk 0:02:43.2]} 12. Nxg6 {[%clk 0:02:53]} 12... hxg6 {[%clk
0:02:44]} 13. f3 {[%clk 0:02:44.5]} 13... a6 {[%clk 0:02:40.3]} 14. Kf2 {[%clk
0:02:44]} 14... b5 {[%clk 0:02:18.3]} 15. Bd3 {[%clk 0:02:29.3]} 15... Na5
{[%clk 0:01:53.6]} 16. Qc2 {[%clk 0:02:28.6]} 16... Nc4 {[%clk 0:01:52.9]} 17.
b3 {[%clk 0:02:26.7]} 17... Bd6 {[%clk 0:01:34.7]} 18. Nxc4 {[%clk 0:02:17.1]}
18... Bxf4 {[%clk 0:00:57.9]} 19. Nb6 {[%clk 0:02:16.4]} 19... Qb7 {[%clk
0:00:45.9]} 20. Nxa8 {[%clk 0:02:15.9]} 20... Qxa8 {[%clk 0:00:24.9]} 21. a4
{[%clk 0:02:15.5]} 21... Qb7 {[%clk 0:00:20.7]} 22. axb5 {[%clk 0:02:15.3]}
22... axb5 {[%clk 0:00:21.6]} 23. Ra5 {[%clk 0:02:15.6]} 23... b4 {[%clk
0:00:19.4]} 24. Rb5 {[%clk 0:02:15.4]} 24... Qc7 {[%clk 0:00:19.5]} 25. Rxb4
{[%clk 0:02:14.2]} 25... O-O {[%clk 0:00:16.4]} 26. Ra4 {[%clk 0:02:02.1]} 26...
Bg3+ {[%clk 0:00:16.4]} 27. Kf1 {[%clk 0:01:39.5]} 27... Qf4 {[%clk 0:00:14.8]}
28. Be2 {[%clk 0:01:34]} 28... Qe3 {[%clk 0:00:13]} 29. Bd1 {[%clk 0:01:29.9]}
29... Rc8 {[%clk 0:00:11.6]} 30. Ra2 {[%clk 0:01:05.5]} 30... Rxc3 {[%clk
0:00:10.6]} 31. Qe2 {[%clk 0:01:05.4]} 31... Qxd4 {[%clk 0:00:10.9]} 32. Rd2
{[%clk 0:01:03.2]} 32... Qc5 {[%clk 0:00:10.9]} 33. Kg2 {[%clk 0:00:54.3]} 33...
Bf4 {[%clk 0:00:10.2]} 34. Rc2 {[%clk 0:00:52.5]} 34... d4 {[%clk 0:00:10.8]}
35. Rxc3 {[%clk 0:00:50.5]} 35... dxc3 {[%clk 0:00:11.7]} 36. Bc2 {[%clk
0:00:46.3]} 36... Nd5 {[%clk 0:00:11.8]} 37. Ra1 {[%clk 0:00:26.1]} 37... Bc7
{[%clk 0:00:11.6]} 38. Ra8+ {[%clk 0:00:24.1]} 38... Kh7 {[%clk 0:00:11.6]} 39.
Qe4 {[%clk 0:00:12.3]} 39... Nf4+ {[%clk 0:00:10]} 40. Kh1 {[%clk 0:00:10.5]}
40... Qf2 {[%clk 0:00:07]} 0-1